Cogmind - Beta 16 @@@ ROGUE MODE // 2025.10.26 @ 23:40:31 Player: Bert Result: Self-destructed Performance ------------- Evolutions (1) 500 Regions Visited (2) 400 Robots Destroyed (15) 75 Value Destroyed (414) 414 Prototype IDs (1) 20 Alien Tech Used (0) 0 Bonus (0) 0 TOTAL SCORE: 1409 Bonus ------- None Cogmind --------- Core Integrity 168/400 Matter 291/300 Energy 22/100 System Corruption 5% Temperature Cool (0) Movement Core (100) Ox1 Location -9/Materials Parts ------- > --- POWER (2) -------- (None) > --- PROPULSION (2) --- (None) > --- UTILITY (3) ------ Medium Storage Unit Weight Redist. System > --- WEAPON (2) ------- Katana > --- INVENTORY (10) --- Armored Wheel Armored Wheel Beam Rifle Heavy Assault Rifle Faulty Improved Assault Rifle Light Cannon Mini Grenade Launcher Peak State ------------ > --- POWER ------------ Light Ion Engine > --- PROPULSION ------- Improved Aluminum Leg Armored Wheel > --- UTILITY ---------- Heat Sink Medium Storage Unit Weight Redist. System > --- WEAPON ----------- Beam Rifle Katana > --- INVENTORY -------- Aluminum Leg Aluminum Leg EM Pulse Gun Heavy Assault Rifle Improved Assault Rifle Light Cannon Mini Grenade Launcher [Rating: 15] Favorites ----------- Power Light Ion Engine Engine Light Ion Engine Propulsion Wheel Leg Improved Aluminum Leg Wheel Wheel Utility Medium Storage Unit Device Heat Sink Storage Medium Storage Unit Weapon EM Pulse Gun Energy Gun EM Pulse Gun Ballistic Gun Heavy Assault Rifle Ballistic Cannon Light Cannon Launcher Grenade Launcher Slashing Weapon Katana Build | -11 -10 -9 ------- Run | Yrd Mat Mat Slots Evolved 2 | . . 2 Power 1 | . . 1 Propulsion . | . . . Utility 1 | . . 1 Weapon . | . . . Parts Attached 26 | 6 6 14 Power 4 | 1 1 2 Engine 4 | 1 1 2 Core . | . . . Reactor . | . . . Propulsion 7 | 2 . 5 Treads . | . . . Leg 3 | . . 3 Wheel 4 | 2 . 2 Hover . | . . . Flight . | . . . Utility 5 | 1 3 1 Device 2 | . 1 1 Storage 3 | 1 2 . Processor . | . . . Hackware . | . . . Protection . | . . . Artifact . | . . . Weapon 10 | 2 2 6 Energy Gun 3 | 2 . 1 Energy Cannon . | . . . Ballistic Gun 3 | . 1 2 Ballistic Cannon 1 | . . 1 Launcher 2 | . 1 1 Special Weapon . | . . . Impact Weapon . | . . . Slashing Weapon 1 | . . 1 Piercing Weapon . | . . . Special Melee Weapon . | . . . Unidentified Prototypes 1 | . . 1 Parts Lost 6 | . . 6 Power 1 | . . 1 Propulsion 3 | . . 3 Utility 1 | . . 1 Weapon 1 | . . 1 Highest Loss Streak 3 | . . 3 To Critical Strikes . | . . . Average Backups 6 | 2 7 7 Power . | . 1 . Propulsion 3 | 1 4 3 Utility . | . 1 . Weapon 3 | . 1 3 Tool/Special . | . . . Unused Backups 5 | . . 5 Power . | . . . Propulsion 5 | . . 5 Utility . | . . . Weapon . | . . . Tool/Special . | . . . Average Slot Usage (%) 87 | . 89 85 Engine 14 | . 14 15 Leg 3 | . . 4 Wheel 19 | . 28 15 Device 13 | . 3 18 Storage 12 | . 14 11 Energy Gun 9 | . 22 2 Ballistic Gun 3 | . . 5 Ballistic Cannon 4 | . . 6 Launcher 3 | . 5 1 Slashing Weapon 2 | . . 3 Peak Build Rating 15 | 6 7 15 Average Rating 9 | 4 6 11 On Entrance 4 | . 6 7 Avg Prop Armor Cover (%) 4 | . . 4 Naked Turns . | . . . Heaviest Build 28 | 13 28 23 Greatest Support 32 | 26 26 32 Greatest Overweight (x) 1 | . 1 1 Average Overweight (x) . | . . . Largest Inventory Capacity 15 | 8 15 10 Average Capacity 9 | 7 9 10 Most Carried 10 | 6 9 10 Average Carried 6 | 2 7 7 Final Capacity 10 | 8 10 10 Final Carried 9 | 6 9 7 Class Distribution -------------------- 100% | Mutant Dominant Class ---------------- Mutant | -10/Materials Mutant | -9/Materials Resources | -11 -10 -9 ----------- Run | Yrd Mat Mat Matter Collected 638 | 232 98 308 Remotely . | . . . Salvage Created 416 | . 75 341 Parts 29 | . 6 23 Haulers Intercepted . | . . . Recyclers Shooed . | . . . Parts Field Recycled . | . . . Retrieved Matter . | . . . Parts Self-Destructed . | . . . Prevented . | . . . Parts Restored . | . . . Kills | -11 -10 -9 ------- Run | Yrd Mat Mat Combat Hostiles Destroyed 11 | . 3 8 Melee 2 | . . 2 Guns 4 | . 3 1 Cannons 5 | . . 5 Classes Destroyed 6 | . 2 4 Operator 1 | . . 1 Watcher 3 | . 1 2 Swarmer 3 | . 3 . Grunt 5 | . . 5 Duelist 1 | . . 1 Sentry 2 | . . 2 Best Kill Streak 3 | . 3 3 Combat Bots Only 3 | . 3 3 Max Kills in Single Turn 2 | . 1 2 Gunslinging . | . . . Exploded . | . . . Melee 1 | . . 1 Uniques/NPCs Destroyed . | . . . Combat | -11 -10 -9 -------- Run | Yrd Mat Mat Hostile Shots Fired 102 | . 13 89 Missed 26 | . 3 23 Hits 76 | . 10 66 Projectile 76 | . 10 66 Critical Strikes 3 | . . 3 Damage Taken 951 | . 78 873 Core 268 | . 36 232 Absorbed by Shields . | . . . Core Remaining (%) 92 | 100 85 . Volleys Fired 35 | . 6 29 Largest 2 | . 2 2 Hottest 80 | . 80 70 Shots Fired 65 | . 12 53 Gun 38 | . 11 27 Cannon 24 | . . 24 Launcher 3 | . 1 2 Special . | . . . Kinetic 46 | . . 46 Thermal 5 | . 5 . Explosive 3 | . 1 2 Electromagnetic 11 | . 6 5 Robot Hit Streak 7 | . 3 7 Robot Miss Streak 2 | . 2 2 Penetration Max . | . . . Secondary Targets 1 | . 1 . Max Gunslinging Chain 1 | . 1 . Shots Hit Robots 46 | . 6 40 Core Hits 20 | . 3 17 Critical Kills . | . . . Critical Parts Destroyed . | . . . Critical Strikes 2 | . 1 1 Blast 1 | . . 1 Corrupt 1 | . 1 . Melee Attacks 8 | . . 8 Impact . | . . . Slashing 8 | . . 8 Piercing . | . . . Sneak Attacks . | . . . Combat Hostiles . | . . . Follow-up Attacks . | . . . Damage Inflicted 961 | . 108 853 Guns 367 | . 63 304 Cannons 254 | . . 254 Explosions 154 | . 45 109 Melee 186 | . . 186 Ramming . | . . . Kinetic 517 | . . 517 Thermal 67 | . 67 . Explosive 109 | . . 109 Electromagnetic 82 | . 41 41 Impact . | . . . Slashing 186 | . . 186 Piercing . | . . . Highest Corruption 5 | . . 5 Average Corruption 5 | . . 5 Corruption Purged . | . . . Corruption Blocked . | . . . Effects 4 | . . 4 Message Errors 1 | . . 1 Matter Fused 2 | . . 2 Data Loss (minor) 1 | . . 1 Overload Shots . | . . . Overflow Damage 39 | . 15 24 Projectiles 12 | . . 12 Explosions 27 | . 15 12 Melee . | . . . Knockbacks 2 | . . 2 Impact . | . . . Kinetic 2 | . . 2 Secondary . | . . . Self-Inflicted Damage . | . . . Shots . | . . . Rammed . | . . . Targets Rammed . | . . . Kicked . | . . . Crushed . | . . . Highest Temperature 70 | . 70 5 Average Temperature 34 | . 38 5 Received Heat Transfer 495 | . . 495 Siege Activations . | . . . Martial Activations . | . . . Shielding Activations . | . . . Robots Disrupted . | . . . Combat Hostiles . | . . . Robots Corrupted . | . . . Combat Hostiles . | . . . Parts Fried . | . . . Impact Corruptions . | . . . Robots Melted . | . . . Combat Hostiles . | . . . Parts Melted . | . . . Heat Transferred 100 | . 100 . Parts Sabotaged . | . . . Parts Stolen . | . . . Parts Stripped . | . . . Power Chain Reactions 1 | . 1 . Alert | -11 -10 -9 ------- Run | Yrd Mat Mat Maximum Alert Level . | . . . Low Security (%) 100 | 100 100 100 Level 1 . | . . . Level 2 . | . . . Level 3 . | . . . Level 4 . | . . . Level 5 . | . . . High Security . | . . . Max Security . | . . . Peak Influence 117 | . 60 117 Initial 16 | . . 16 Average 52 | . 23 72 Influence Increases 356 | . 90 266 Destroy 0b10 Robot/C 220 | . 60 160 Destroy 0b10 Robot/NC 20 | . 5 15 Destroy Leader 56 | . 12 44 Destroy Structure 30 | . 13 17 Lose Combat Pursuer 30 | . . 30 Influence Decreases 324 | . 50 274 Entered New Map 24 | . . 24 Time Decay 240 | . 50 190 Lost Part 60 | . . 60 Squads Dispatched . | . . . Investigation . | . . . Extermination . | . . . Reinforcement . | . . . Assault . | . . . Garrison . | . . . Intercept . | . . . Searches Triggered . | . . . Construction Impeded . | . . . Haulers Reinforced . | . . . Active Scanning Responses . | . . . Cargo Convoy Interrupts . | . . . Stealth | -11 -10 -9 --------- Run | Yrd Mat Mat Distress Signals 3 | . . 3 Communications Jammed . | . . . Distress Signals . | . . . Times Spotted 24 | . 4 20 Peak Tracking Total 6 | . 3 6 Tactical Retreats 2 | . . 2 Traps | -11 -10 -9 ------- Run | Yrd Mat Mat Traps Triggered . | . . . Indirectly . | . . . Trap Hack Attempts . | . . . Triggered . | . . . Disarmed . | . . . Reprogrammed . | . . . Reused . | . . . Traps Extracted . | . . . Installed . | . . . Triggered . | . . . Machines | -11 -10 -9 ---------- Run | Yrd Mat Mat Machines Disabled . | . . . Max in Single Turn . | . . . Machines Repaired . | . . . Machines Dismantled . | . . . Machines Sabotaged . | . . . Overloaded Fab Kills . | . . . Hacking | -11 -10 -9 --------- Run | Yrd Mat Mat Machines Accessed 4 | . . 4 Terminals 4 | . . 4 Fabricators . | . . . Repair Stations . | . . . Recycling Units . | . . . Scanalyzers . | . . . Garrison Access . | . . . Total Hacks 10 | . . 10 Successful 6 | . . 6 Failed 4 | . . 4 Catastrophic . | . . . Database Lockouts . | . . . Manual 2 | . . 2 Terminals 10 | . . 10 Fabricators . | . . . Repair Stations . | . . . Recycling Units . | . . . Scanalyzers . | . . . Garrison Access . | . . . Terminal Hacks 6 | . . 6 Record 4 | . . 4 Alert Level 1 | . . 1 Locate Traps 1 | . . 1 Fabricator Hacks . | . . . Repair Station Hacks . | . . . Recycling Unit Hacks . | . . . Scanalyzer . | . . . Garrison Access Hacks . | . . . Unauthorized Hacks . | . . . Terminals . | . . . Fabricators . | . . . Repair Stations . | . . . Recycling Units . | . . . Scanalyzers . | . . . Garrison Access . | . . . Data Cores Recovered 1 | . . 1 Used . | . . . Hacking Detections 4 | . . 4 Full Trace Events . | . . . Feedback Events . | . . . Feedback Blocked . | . . . Robot Schematics Acquired . | . . . Robots Built . | . . . Authchips . | . . . Time . | . . . Total Robot Build Rating . | . . . Part Schematics Acquired . | . . . Parts Built . | . . . Authchips . | . . . Time . | . . . Total Part Build Rating . | . . . Part Studies Acquired . | . . . Parts Repaired . | . . . Time . | . . . Parts Recycled . | . . . Recycled Matter . | . . . Retrieved Matter . | . . . Retrieved Components . | . . . Parts Scanalyzed . | . . . Part Schematics Acquired . | . . . Parts Damaged . | . . . Bothacking | -11 -10 -9 ------------ Run | Yrd Mat Mat Used RIF Installer . | . . . Robots Hacked . | . . . Non-combat . | . . . Combat . | . . . Robot Hacks Applied . | . . . Relay Couplers Released . | . . . Fabnet Peak Effective % . | . . . Robots Rewired . | . . . Allies Hacked . | . . . Hacks Repelled . | . . . Allies | -11 -10 -9 -------- Run | Yrd Mat Mat Total Allies . | . . . Largest Group . | . . . Highest-Rated Group . | . . . Highest-Rated Ally . | . . . Total Orders . | . . . Ally Attacks . | . . . Total Damage . | . . . Kills . | . . . Allies Corrupted . | . . . Allies Melted . | . . . Intel | -11 -10 -9 ------- Run | Yrd Mat Mat Active Infowar (turns) . | . . . Robot Analysis Total . | . . . Derelict Logs Recovered . | . . . Drone Launches . | . . . Drone Recoveries . | . . . Exploration | -11 -10 -9 ------------- Run | Yrd Mat Mat Turns Passed 604 | 47 177 380 Spaces Moved 408 | 36 163 209 Core 2 | 2 . . Treads . | . . . Legs 42 | . . 42 Wheels 364 | 34 163 167 Hover . | . . . Flight . | . . . Fastest Speed 50 | 50 90 90 Average Speed 94 | 89 90 97 Slowest Speed 190 | 100 105 190 Overloaded Moves . | . . . Propulsion Burnouts . | . . . Robots Hopped . | . . . Potential Cave-ins . | . . . Cave-ins Triggered . | . . . Exploration Rate (%) 18 | 3 28 25 Regions Visited 2 Branch Regions . Pre-discovered Areas . | . . . Known Exits Taken . | . . . Unknown Exits Taken 2 | 1 1 . Scrap Searched . | . . . Spaces Dug . | . . . Terrain Destroyed 26 | . 11 15 Melee . | . . . Projectile . | . . . AOE 26 | . 11 15 Terrain Rammed . | . . . Walls Destroyed . | . . . Machines Disabled . | . . . Actions | -11 -10 -9 --------- Run | Yrd Mat Mat Total 547 | 47 179 321 Wait 36 | . . 36 Move 406 | 35 162 209 Hop . | . . . Pick Up 15 | 6 2 7 Fast Attach 14 | 6 3 5 Attach 2 | . . 2 Detach 6 | . 2 4 Swap 11 | . 3 8 Drop 14 | . 1 13 Fire 35 | . 6 29 Melee 8 | . . 8 Ram . | . . . Kick . | . . . Crush . | . . . Escape Stasis . | . . . Rewire . | . . . Trap . | . . . Miscellaneous . | . . . Route ------- -11/Scrapyard -10/Materials (discovered 2 exits: *Mat / [*Min]) -9/Materials History --------- Turn | Location | Event 22 | -11/Scrapyard | Discovered new exit (range 15) 48 | -11/Scrapyard | Entered Materials 56 | -10/Materials | Discovered new exit (range 16) 222 | -10/Materials | Discovered new exit (range 3) 225 | -10/Materials | Entered another Materials area 225 | -9/Materials | Evolved 2 slots: Power x1, Utility x1 308 | -9/Materials | Build established: Mutant 599 | -9/Materials | Core integrity fell below 50% 605 | -9/Materials | Self-destructed Last Messages --------------- 00501_ Acquired 2 matter. 00511_ Acquired Arm. Wheel. 00513_ PNF22M LWWOV,BHM,<5C92:A<8B8ST&>HKU 00514_ Acquired Arm. Wheel. 00517_ Dropped Aluminum Leg. 00518_ Dropped Imp. Aluminum Leg. 00518_ Acquired Arm. Wheel. 00526_ W-16 Scout sends out distress signal. 00536_ G-34 Mercenary IFF system glitched. 00542_ Lgt. Ion Engine destroyed. 00542_ EM Pulse Gun destroyed. 00544_ System corrupted: Matter fused (-7). 00545_ G-34 Mercenary destroyed. 00550_ Acquired 50 matter. 00565_ System corrupted: Component data lost. 00584_ Heat Sink destroyed. 00588_ System corrupted: Matter fused (-8). 00588_ Arm. Wheel destroyed. 00592_ Critical hit (Burn: +37). 00604_ Arm. Wheel destroyed. Map ----- +----------------------------------------------------+ | ???????????????????????????????????? | | ???????????????????? ?????????????? | | ???????????????????? ?????????????? | | ???????????????????? ?????????????? | | ????????????######?? #??##########+ | | ????????????# #?# | | ????????????# T #?# | | ????????????# #?# #????####### | | #?##?#??????# #?# ######## #?# | | ?[ ??#### #?# # = = #?# | | # ""??# # #?# # = #?# | | #] """?# + #?# # #?# | | ? """?# # ! #?# # #?# | | ?! # # #?# # #?# | | # """ # ##+##### #* #?# | | # """ + # = "T" #?#^^ | | # """ # +! """ #?#^^ | | ? # ##/###### # [ #?#% | | ??######?# #? ## #####+###### | | ??# ### # ## ! | | ??# # !!!############### | | ??# + !! #?????????????# | | ??# ###gg# !! #?????????????# | | ??## ???# # ! #?????????????# | | ???#?????# ########?????????????# | | ?????????# @ #???????????????????# | | ?????????# ???????????????? | | ?????????# #?????????????# = | | ?????????## #?????????????# | | ??????????# #?????????????# | | ??????????# +?????????????# | | ??????????#+#### #?????????????#### | | ???????????????? #????????????????? | | ????????????????? +????????????????? | | ?????????????????##????????????????? | | ???????????????????????????????????? | | ???????????????????????????????????? | | ???????????????????????????????????? | | ???????????????????????????????????? | | | | | | | | | | | | | | | | | | | | | | | +----------------------------------------------------+ Best States ------------- Heat Dissipation 38 Energy Generation 15 Energy Capacity 250 Matter Stores 300 Matter Capacity 300 Sight Range 16 Terrain Scan Density 10 Additional Mass Support 6 Evasion (%) 55 Item Schematics ----------------- None Robot Schematics ------------------ None Fabricated ------------ Nothing Repaired ---------- Nothing Studied --------- None Alien Tech Used ----------------- None Achievements -------------- None Challenges ------------ None Game ------ Seed AnalysisDeflectorGriptreads Manual? 0 Play Time 00:19:18 Cumulative 169.8 hours Start 2025.10.26 @ 23:22:00 End 2025.10.26 @ 23:40:31 Sessions 1 Manual Loads 0 Difficulty Rogue Special Mode None Game No. 233 Rogue 233 Adventurer 0 Explorer 0 Win Type - Total 1 Types 1/0/0/0/0/0/0/0/0/0 Lore% 21 Gallery% 46 Achievement% 23 Wizard Run 0 Options --------- Layout 1 ASCII 0 Keyboard 1 Movement Numpad Keybinds 0 Fullscreen 1 Font 16/Tamsyn Map View 55x38 Zoom Use 0% Tactical HUD 1 Map Filters NONE Filters NONE Steam 1 RUN: 376d3beb-f1c4-4506-88b2-7e7600fddc8b